[Event "*** SCC Grand Prix: Titled Tuesday Blitz"]
[Site "Chess.com"]
[Date "2020.06.02"]
[Round "2"]
[White "LizaSolovyova"]
[Black "StephenDedalus83"]
[Result "0-1"]
[WhiteElo "2500"]
[BlackElo "2742"]
[TimeControl "180+1"]
[EndTime "10:17:23 PDT"]
[Termination "StephenDedalus83 won by resignation"]

1. d4 {[%clk 0:02:43.8]} 1... g6 {[%clk 0:02:59.6]} 2. Nc3 {[%clk 0:02:43.5]}
2... Bg7 {[%clk 0:03:00]} 3. e4 {[%clk 0:02:44]} 3... d6 {[%clk 0:02:58.9]} 4.
Be3 {[%clk 0:02:44]} 4... a6 {[%clk 0:02:58.3]} 5. h3 {[%clk 0:02:43.2]} 5... b5
{[%clk 0:02:57.5]} 6. a3 {[%clk 0:02:43.3]} 6... Bb7 {[%clk 0:02:57.1]} 7. g4
{[%clk 0:02:43.4]} 7... Nd7 {[%clk 0:02:55.1]} 8. Bg2 {[%clk 0:02:43.7]} 8... c5
{[%clk 0:02:50.1]} 9. Nge2 {[%clk 0:02:43.8]} 9... cxd4 {[%clk 0:02:45.4]} 10.
Bxd4 {[%clk 0:02:43.5]} 10... Ngf6 {[%clk 0:02:37.8]} 11. O-O {[%clk 0:02:41.9]}
11... Qc7 {[%clk 0:02:17.5]} 12. Nd5 {[%clk 0:02:32.8]} 12... Bxd5 {[%clk
0:02:15]} 13. exd5 {[%clk 0:02:33.7]} 13... O-O {[%clk 0:02:14.9]} 14. Ng3
{[%clk 0:02:20.4]} 14... Rac8 {[%clk 0:02:11.9]} 15. c3 {[%clk 0:02:20.2]} 15...
Nb6 {[%clk 0:02:11]} 16. Re1 {[%clk 0:02:10.8]} 16... Rfe8 {[%clk 0:02:05.2]}
17. g5 {[%clk 0:02:09]} 17... Nfd7 {[%clk 0:02:04.4]} 18. Bxg7 {[%clk
0:02:08.7]} 18... Kxg7 {[%clk 0:02:05.3]} 19. Qd4+ {[%clk 0:02:08.7]} 19... Kg8
{[%clk 0:02:04.8]} 20. Re2 {[%clk 0:02:00.7]} 20... Qc5 {[%clk 0:02:00]} 21. Qd2
{[%clk 0:01:43.8]} 21... Ne5 {[%clk 0:01:50.6]} 22. Rae1 {[%clk 0:01:36.8]}
22... Nbc4 {[%clk 0:01:37.4]} 23. Qd1 {[%clk 0:01:31.4]} 23... a5 {[%clk
0:01:30.8]} 24. Kh2 {[%clk 0:01:30.3]} 24... Kf8 {[%clk 0:00:57.7]} 25. f4
{[%clk 0:01:26.7]} 25... Nd7 {[%clk 0:00:57.1]} 26. Qd3 {[%clk 0:01:16.7]} 26...
Ndb6 {[%clk 0:00:53]} 27. b4 {[%clk 0:01:14.3]} 27... axb4 {[%clk 0:00:51.2]}
28. axb4 {[%clk 0:01:13.9]} 28... Qc7 {[%clk 0:00:51.2]} 29. Qd4 {[%clk
0:01:10.1]} 29... Kg8 {[%clk 0:00:51.1]} 30. f5 {[%clk 0:01:09]} 30... Ne5
{[%clk 0:00:49.2]} 31. Re3 {[%clk 0:00:59.9]} 31... Nbc4 {[%clk 0:00:48.5]} 32.
Re4 {[%clk 0:00:57.8]} 32... Ra8 {[%clk 0:00:47.8]} 33. Rh4 {[%clk 0:00:50.4]}
33... Ra2 {[%clk 0:00:47.4]} 34. Kh1 {[%clk 0:00:44.2]} 34... Qa7 {[%clk
0:00:43.5]} 35. fxg6 {[%clk 0:00:38.5]} 35... hxg6 {[%clk 0:00:40.5]} 36. Qe4
{[%clk 0:00:26.8]} 36... Qf2 {[%clk 0:00:39.2]} 37. Nh5 {[%clk 0:00:16.5]} 37...
gxh5 {[%clk 0:00:37.1]} 38. Rxh5 {[%clk 0:00:16.3]} 38... Ng6 {[%clk 0:00:36.8]}
39. Rf1 {[%clk 0:00:14.4]} 39... Qxg2+ {[%clk 0:00:35.7]} 40. Qxg2 {[%clk
0:00:14]} 40... Rxg2 {[%clk 0:00:36.2]} 41. Kxg2 {[%clk 0:00:14.9]} 41... Ne3+
{[%clk 0:00:36.1]} 0-1

[Event "*** SCC Grand Prix: Titled Tuesday Blitz"]
[Site "Chess.com"]
[Date "2020.06.02"]
[Round "2"]
[White "GoValya"]
[Black "Doukis"]
[Result "1-0"]
[WhiteElo "2181"]
[BlackElo "2399"]
[TimeControl "180+1"]
[EndTime "10:17:23 PDT"]
[Termination "GoValya won by checkmate"]

1. d4 {[%clk 0:03:00.9]} 1... d5 {[%clk 0:02:56.6]} 2. c4 {[%clk 0:02:59.5]}
2... c6 {[%clk 0:02:56.9]} 3. g3 {[%clk 0:02:58.3]} 3... Nf6 {[%clk 0:02:54.5]}
4. Bg2 {[%clk 0:02:58.2]} 4... Bf5 {[%clk 0:02:51.5]} 5. Nc3 {[%clk 0:02:56.3]}
5... e6 {[%clk 0:02:49.6]} 6. e3 {[%clk 0:02:48.3]} 6... Nbd7 {[%clk 0:02:41.6]}
7. Nge2 {[%clk 0:02:46.8]} 7... h5 {[%clk 0:02:31]} 8. O-O {[%clk 0:02:38.3]}
8... h4 {[%clk 0:02:30.8]} 9. cxd5 {[%clk 0:02:30.7]} 9... exd5 {[%clk
0:02:30.1]} 10. Nf4 {[%clk 0:02:30.3]} 10... g5 {[%clk 0:02:16.1]} 11. Nd3
{[%clk 0:02:24.2]} 11... Bd6 {[%clk 0:02:13.3]} 12. f4 {[%clk 0:02:18.4]} 12...
g4 {[%clk 0:02:04.5]} 13. Ne5 {[%clk 0:02:11.5]} 13... Nh5 {[%clk 0:01:51.1]}
14. Nxg4 {[%clk 0:02:05.5]} 14... hxg3 {[%clk 0:01:49.2]} 15. h3 {[%clk
0:02:00.9]} 15... Qh4 {[%clk 0:01:43.5]} 16. e4 {[%clk 0:01:42.1]} 16... dxe4
{[%clk 0:01:32.9]} 17. Nxe4 {[%clk 0:01:38]} 17... Bxe4 {[%clk 0:01:31.6]} 18.
Bxe4 {[%clk 0:01:28.8]} 18... Qxh3 {[%clk 0:01:23.8]} 19. Bf5 {[%clk 0:01:18.7]}
19... O-O-O {[%clk 0:00:59.6]} 20. Qc2 {[%clk 0:01:06.5]} 20... Nxf4 {[%clk
0:00:49.8]} 21. Qe4 {[%clk 0:00:51.4]} 21... g2 {[%clk 0:00:36.5]} 22. Bxf4
{[%clk 0:00:31.1]} 22... Bxf4 {[%clk 0:00:17.4]} 23. Qxf4 {[%clk 0:00:26.7]}
23... Qh1+ {[%clk 0:00:16.4]} 24. Kf2 {[%clk 0:00:26.8]} 24... gxf1=Q+ {[%clk
0:00:16.5]} 25. Rxf1 {[%clk 0:00:26.3]} 25... Qd5 {[%clk 0:00:16.2]} 26. Ne5
{[%clk 0:00:22.2]} 26... f6 {[%clk 0:00:08.9]} 27. Nxd7 {[%clk 0:00:20.3]} 27...
Rxd7 {[%clk 0:00:09.8]} 28. Re1 {[%clk 0:00:18.7]} 28... Kd8 {[%clk 0:00:07.9]}
29. Bxd7 {[%clk 0:00:17.4]} 29... Kxd7 {[%clk 0:00:08.8]} 30. Qg4+ {[%clk
0:00:14.9]} 30... f5 {[%clk 0:00:08.4]} 31. Qg7+ {[%clk 0:00:14.5]} 31... Kd6
{[%clk 0:00:08.8]} 32. Qe7# {[%clk 0:00:12.8]} 1-0

[Event "*** SCC Grand Prix: Titled Tuesday Blitz"]
[Site "Chess.com"]
[Date "2020.06.02"]
[Round "2"]
[White "Zufi1811"]
[Black "GAusal"]
[Result "1-0"]
[WhiteElo "2462"]
[BlackElo "1993"]
[TimeControl "180+1"]
[EndTime "10:17:24 PDT"]
[Termination "Zufi1811 won on time"]

1. e4 {[%clk 0:03:00.9]} 1... e5 {[%clk 0:02:59]} 2. Nf3 {[%clk 0:03:00.6]} 2...
Nc6 {[%clk 0:02:57.3]} 3. Bb5 {[%clk 0:03:00.7]} 3... a6 {[%clk 0:02:54.3]} 4.
Ba4 {[%clk 0:03:01.1]} 4... b5 {[%clk 0:02:52.3]} 5. Bb3 {[%clk 0:02:59.3]} 5...
d6 {[%clk 0:02:52.3]} 6. c3 {[%clk 0:02:51]} 6... Nf6 {[%clk 0:02:48.9]} 7. O-O
{[%clk 0:02:49.6]} 7... Be7 {[%clk 0:02:45.4]} 8. Re1 {[%clk 0:02:49.8]} 8...
O-O {[%clk 0:02:41.4]} 9. h3 {[%clk 0:02:50.1]} 9... Na5 {[%clk 0:02:36.7]} 10.
Bc2 {[%clk 0:02:50.1]} 10... c5 {[%clk 0:02:32.8]} 11. d4 {[%clk 0:02:49.4]}
11... Qc7 {[%clk 0:02:29.6]} 12. Nbd2 {[%clk 0:02:48.1]} 12... cxd4 {[%clk
0:02:23.5]} 13. cxd4 {[%clk 0:02:49]} 13... Bd7 {[%clk 0:02:19.3]} 14. d5 {[%clk
0:02:42.4]} 14... Rac8 {[%clk 0:02:12.7]} 15. Bd3 {[%clk 0:02:02.1]} 15... h6
{[%clk 0:02:07.5]} 16. Nf1 {[%clk 0:01:53.9]} 16... Ne8 {[%clk 0:01:56.3]} 17.
Ng3 {[%clk 0:01:44.8]} 17... Nb7 {[%clk 0:01:48.3]} 18. b4 {[%clk 0:01:41.6]}
18... a5 {[%clk 0:01:43.9]} 19. a3 {[%clk 0:01:41.4]} 19... Qc3 {[%clk
0:01:38.3]} 20. Rb1 {[%clk 0:01:38.7]} 20... axb4 {[%clk 0:01:28.3]} 21. axb4
{[%clk 0:01:39.6]} 21... Qc7 {[%clk 0:01:23.7]} 22. Be3 {[%clk 0:01:34]} 22...
Qb8 {[%clk 0:01:16.9]} 23. Qe2 {[%clk 0:01:29.5]} 23... Nd8 {[%clk 0:01:11]} 24.
Rec1 {[%clk 0:01:26.2]} 24... Rxc1+ {[%clk 0:01:04]} 25. Rxc1 {[%clk 0:01:27.1]}
25... Nc7 {[%clk 0:00:58.6]} 26. Ra1 {[%clk 0:01:22.9]} 26... Nb7 {[%clk
0:00:52.4]} 27. Nd2 {[%clk 0:01:12.3]} 27... f5 {[%clk 0:00:47.8]} 28. Nxf5
{[%clk 0:00:48.3]} 28... Bxf5 {[%clk 0:00:43.3]} 29. exf5 {[%clk 0:00:49.2]}
29... Nxd5 {[%clk 0:00:39.2]} 30. Bc4 {[%clk 0:00:36.8]} 30... bxc4 {[%clk
0:00:30.8]} 31. Qxc4 {[%clk 0:00:37.7]} 31... Rxf5 {[%clk 0:00:25.8]} 32. Qxd5+
{[%clk 0:00:37.8]} 32... Rf7 {[%clk 0:00:16.9]} 33. Ra7 {[%clk 0:00:38.2]} 33...
Kf8 {[%clk 0:00:08.8]} 34. Rxb7 {[%clk 0:00:36.9]} 34... Qc8 {[%clk 0:00:08.3]}
35. Ra7 {[%clk 0:00:33.1]} 35... Qc1+ {[%clk 0:00:07.4]} 36. Kh2 {[%clk
0:00:33.3]} 36... Qc8 {[%clk 0:00:03]} 37. Ra8 {[%clk 0:00:32.6]} 1-0

[Event "*** SCC Grand Prix: Titled Tuesday Blitz"]
[Site "Chess.com"]
[Date "2020.06.02"]
[Round "2"]
[White "marianokar"]
[Black "Drags95"]
[Result "0-1"]
[WhiteElo "2413"]
[BlackElo "2662"]
[TimeControl "180+1"]
[EndTime "10:17:25 PDT"]
[Termination "Drags95 won on time"]

1. d4 {[%clk 0:03:00.9]} 1... Nf6 {[%clk 0:02:59.9]} 2. Nf3 {[%clk 0:03:00.4]}
2... e6 {[%clk 0:02:57.4]} 3. c4 {[%clk 0:03:00.5]} 3... d5 {[%clk 0:02:55.4]}
4. g3 {[%clk 0:03:00.7]} 4... Bb4+ {[%clk 0:02:53.8]} 5. Bd2 {[%clk 0:03:00.2]}
5... Be7 {[%clk 0:02:53.9]} 6. Bg2 {[%clk 0:02:59.9]} 6... c6 {[%clk 0:02:53.7]}
7. O-O {[%clk 0:03:00.2]} 7... Nbd7 {[%clk 0:02:54.3]} 8. Qb3 {[%clk 0:02:55.9]}
8... O-O {[%clk 0:02:53.1]} 9. Nc3 {[%clk 0:02:56.5]} 9... b6 {[%clk 0:02:49.3]}
10. Bf4 {[%clk 0:02:55.1]} 10... Bb7 {[%clk 0:02:41.2]} 11. cxd5 {[%clk
0:02:53.8]} 11... cxd5 {[%clk 0:02:41.7]} 12. Rfc1 {[%clk 0:02:53.7]} 12... a6
{[%clk 0:02:39.7]} 13. Na4 {[%clk 0:02:43.9]} 13... b5 {[%clk 0:02:31.7]} 14.
Bc7 {[%clk 0:02:37]} 14... Qe8 {[%clk 0:02:31.6]} 15. Nb6 {[%clk 0:02:36.1]}
15... Nxb6 {[%clk 0:02:26.8]} 16. Bxb6 {[%clk 0:02:37]} 16... Rc8 {[%clk
0:02:11.4]} 17. Ne5 {[%clk 0:02:29.9]} 17... Nd7 {[%clk 0:02:03.9]} 18. Nxd7
{[%clk 0:02:21]} 18... Qxd7 {[%clk 0:02:03.9]} 19. Bc5 {[%clk 0:02:08.9]} 19...
Bxc5 {[%clk 0:02:01.4]} 20. Rxc5 {[%clk 0:02:06.6]} 20... Rxc5 {[%clk
0:01:54.3]} 21. dxc5 {[%clk 0:02:07.5]} 21... Rc8 {[%clk 0:01:41.2]} 22. Rc1
{[%clk 0:02:07.8]} 22... d4 {[%clk 0:01:34.9]} 23. Bxb7 {[%clk 0:01:42]} 23...
Qxb7 {[%clk 0:01:35.8]} 24. Qd3 {[%clk 0:01:42.3]} 24... Qd5 {[%clk 0:01:32.1]}
25. b4 {[%clk 0:01:32.2]} 25... e5 {[%clk 0:01:30.1]} 26. Qf5 {[%clk 0:01:14.5]}
26... Rc6 {[%clk 0:01:30]} 27. Qc2 {[%clk 0:00:23.5]} 27... g6 {[%clk
0:01:26.5]} 28. e4 {[%clk 0:00:21.4]} 28... dxe3 {[%clk 0:01:24.5]} 29. fxe3
{[%clk 0:00:22.3]} 29... h5 {[%clk 0:01:18]} 30. Rd1 {[%clk 0:00:22.3]} 30...
Qf3 {[%clk 0:01:12.1]} 31. Rd8+ {[%clk 0:00:22.7]} 31... Kg7 {[%clk 0:01:04.3]}
32. Qf2 {[%clk 0:00:23.2]} 32... Qe4 {[%clk 0:00:59]} 33. Qd2 {[%clk 0:00:15.9]}
33... Rf6 {[%clk 0:00:51.1]} 34. Qe2 {[%clk 0:00:09.6]} 34... Qxb4 {[%clk
0:00:41.2]} 35. Rc8 {[%clk 0:00:04]} 35... Qb1+ {[%clk 0:00:33.6]} 36. Kg2
{[%clk 0:00:03.8]} 36... Qe4+ {[%clk 0:00:34.2]} 37. Kg1 {[%clk 0:00:04.2]}
37... Rf3 {[%clk 0:00:34.7]} 38. c6 {[%clk 0:00:03.7]} 38... Rxe3 {[%clk
0:00:34.9]} 39. Qf2 {[%clk 0:00:03.3]} 39... Re1+ {[%clk 0:00:34.7]} 0-1

[Event "*** SCC Grand Prix: Titled Tuesday Blitz"]
[Site "Chess.com"]
[Date "2020.06.02"]
[Round "2"]
[White "Susal_De_Silva"]
[Black "JonahWillow"]
[Result "1-0"]
[WhiteElo "2333"]
[BlackElo "2666"]
[TimeControl "180+1"]
[EndTime "10:17:25 PDT"]
[Termination "Susal_De_Silva won by resignation"]

1. e4 {[%clk 0:03:00.9]} 1... c5 {[%clk 0:03:00]} 2. Nf3 {[%clk 0:03:01.2]} 2...
Nc6 {[%clk 0:03:00.7]} 3. Bb5 {[%clk 0:03:01.4]} 3... g6 {[%clk 0:03:00.6]} 4.
Bxc6 {[%clk 0:03:00.9]} 4... dxc6 {[%clk 0:03:01.5]} 5. d3 {[%clk 0:03:01.2]}
5... Bg7 {[%clk 0:03:01.3]} 6. h3 {[%clk 0:03:01.7]} 6... e5 {[%clk 0:02:54]} 7.
O-O {[%clk 0:03:01.2]} 7... Ne7 {[%clk 0:02:53]} 8. Nc3 {[%clk 0:03:01.5]} 8...
O-O {[%clk 0:02:51.5]} 9. Be3 {[%clk 0:03:01.8]} 9... b6 {[%clk 0:02:47.2]} 10.
a4 {[%clk 0:03:00.7]} 10... h6 {[%clk 0:02:45.7]} 11. a5 {[%clk 0:02:59.3]}
11... Be6 {[%clk 0:02:41.3]} 12. Nd2 {[%clk 0:02:57.9]} 12... g5 {[%clk
0:02:38.5]} 13. Re1 {[%clk 0:02:36.2]} 13... Ng6 {[%clk 0:02:36]} 14. Nf1 {[%clk
0:02:35.5]} 14... Nf4 {[%clk 0:02:34.3]} 15. Ng3 {[%clk 0:02:32.2]} 15... Qd7
{[%clk 0:02:31.5]} 16. Nh5 {[%clk 0:02:05]} 16... Bh8 {[%clk 0:01:38.6]} 17.
Bxf4 {[%clk 0:01:59.3]} 17... gxf4 {[%clk 0:01:28.9]} 18. Kh2 {[%clk 0:01:59.5]}
18... Kh7 {[%clk 0:01:27.3]} 19. Rg1 {[%clk 0:01:54.5]} 19... Rg8 {[%clk
0:01:26.7]} 20. Qf3 {[%clk 0:01:52.1]} 20... Rg5 {[%clk 0:01:19]} 21. axb6
{[%clk 0:01:43.4]} 21... Kg6 {[%clk 0:00:58.5]} 22. g3 {[%clk 0:01:15.8]} 22...
fxg3+ {[%clk 0:00:35.5]} 23. Rxg3 {[%clk 0:01:11.9]} 23... a6 {[%clk 0:00:18.6]}
24. Rag1 {[%clk 0:01:03.5]} 24... Rb8 {[%clk 0:00:15.9]} 25. h4 {[%clk
0:00:58.4]} 25... Rxg3 {[%clk 0:00:11.6]} 26. Rxg3+ {[%clk 0:00:43]} 26... Kh7
{[%clk 0:00:07.8]} 27. Nf6+ {[%clk 0:00:37.1]} 27... Bxf6 {[%clk 0:00:07.4]} 28.
Qxf6 {[%clk 0:00:37.3]} 28... Rg8 {[%clk 0:00:05.5]} 29. Qxe5 {[%clk 0:00:34.5]}
29... Rxg3 {[%clk 0:00:04]} 30. Qxg3 {[%clk 0:00:31.5]} 30... Qb7 {[%clk
0:00:03.4]} 31. Qc7 {[%clk 0:00:30.8]} 31... Qxc7+ {[%clk 0:00:01.6]} 32. bxc7
{[%clk 0:00:31.5]} 32... Kg6 {[%clk 0:00:02.1]} 33. Na4 {[%clk 0:00:31.3]} 33...
Kf6 {[%clk 0:00:02.7]} 34. Nb6 {[%clk 0:00:31.8]} 1-0

[Event "*** SCC Grand Prix: Titled Tuesday Blitz"]
[Site "Chess.com"]
[Date "2020.06.02"]
[Round "2"]
[White "eCztery"]
[Black "WiktoriaPOL"]
[Result "1-0"]
[WhiteElo "2360"]
[BlackElo "2005"]
[TimeControl "180+1"]
[EndTime "10:17:26 PDT"]
[Termination "eCztery won by resignation"]

1. e4 {[%clk 0:03:00.9]} 1... e5 {[%clk 0:02:59]} 2. Nf3 {[%clk 0:02:59.3]} 2...
Nc6 {[%clk 0:02:58.6]} 3. d4 {[%clk 0:02:56.6]} 3... exd4 {[%clk 0:02:58.1]} 4.
Nxd4 {[%clk 0:02:57.5]} 4... Bc5 {[%clk 0:02:57.8]} 5. Be3 {[%clk 0:02:56.6]}
5... Qf6 {[%clk 0:02:56.5]} 6. Nb5 {[%clk 0:02:56.7]} 6... Bxe3 {[%clk
0:02:53.9]} 7. fxe3 {[%clk 0:02:57.6]} 7... Qh4+ {[%clk 0:02:54]} 8. g3 {[%clk
0:02:53.6]} 8... Qd8 {[%clk 0:02:53.5]} 9. Qg4 {[%clk 0:02:53]} 9... g5 {[%clk
0:02:52.2]} 10. N1c3 {[%clk 0:02:45.8]} 10... Ne5 {[%clk 0:02:38.2]} 11. Qe2
{[%clk 0:02:13.5]} 11... d6 {[%clk 0:02:36.4]} 12. Nd5 {[%clk 0:02:10]} 12...
Bg4 {[%clk 0:02:19]} 13. Nbxc7+ {[%clk 0:01:52.4]} 13... Kf8 {[%clk 0:02:18]}
14. Qb5 {[%clk 0:01:50.5]} 14... Nf3+ {[%clk 0:02:12.4]} 15. Kf2 {[%clk
0:01:47]} 15... a6 {[%clk 0:02:08.1]} 16. Qb6 {[%clk 0:01:41.4]} 16... Rc8
{[%clk 0:01:53.2]} 17. h3 {[%clk 0:01:35.2]} 17... Bh5 {[%clk 0:01:24.3]} 18. g4
{[%clk 0:01:23.1]} 18... Bg6 {[%clk 0:01:23]} 19. Kxf3 {[%clk 0:01:17.5]} 19...
Nf6 {[%clk 0:01:02.8]} 20. Bd3 {[%clk 0:01:10.4]} 20... Nd7 {[%clk 0:00:58.7]}
21. Qxd6+ {[%clk 0:01:01.3]} 21... Kg7 {[%clk 0:00:56.3]} 22. e5 {[%clk
0:00:51.7]} 22... Bxd3 {[%clk 0:00:19.7]} 23. cxd3 {[%clk 0:00:50.1]} 23... h5
{[%clk 0:00:19.2]} 24. Rag1 {[%clk 0:00:45.3]} 24... Rh6 {[%clk 0:00:18.4]} 25.
Nf6 {[%clk 0:00:13.8]} 25... Qxc7 {[%clk 0:00:07.8]} 26. Qxc7 {[%clk 0:00:09]}
26... Rxc7 {[%clk 0:00:07.7]} 27. Ne8+ {[%clk 0:00:09.4]} 27... Kf8 {[%clk
0:00:06.5]} 28. Nxc7 {[%clk 0:00:10.3]} 28... Nxe5+ {[%clk 0:00:06.8]} 29. Ke2
{[%clk 0:00:10.3]} 29... hxg4 {[%clk 0:00:05.9]} 30. hxg4 {[%clk 0:00:11.2]} 1-0

[Event "*** SCC Grand Prix: Titled Tuesday Blitz"]
[Site "Chess.com"]
[Date "2020.06.02"]
[Round "2"]
[White "Witik"]
[Black "AnishGiri"]
[Result "0-1"]
[WhiteElo "2583"]
[BlackElo "2979"]
[TimeControl "180+1"]
[EndTime "10:17:27 PDT"]
[Termination "AnishGiri won by resignation"]

1. e4 {[%clk 0:03:00.9]} 1... c5 {[%clk 0:03:00.2]} 2. Nf3 {[%clk 0:03:00.5]}
2... e6 {[%clk 0:03:00.7]} 3. c3 {[%clk 0:02:41.8]} 3... Nf6 {[%clk 0:02:59.5]}
4. d3 {[%clk 0:02:38.6]} 4... Nc6 {[%clk 0:02:54.6]} 5. Be2 {[%clk 0:02:36.3]}
5... d5 {[%clk 0:02:42.7]} 6. Nbd2 {[%clk 0:02:33.6]} 6... Be7 {[%clk
0:02:39.4]} 7. O-O {[%clk 0:02:33.3]} 7... O-O {[%clk 0:02:40]} 8. Re1 {[%clk
0:02:30.9]} 8... b5 {[%clk 0:02:38.9]} 9. Bf1 {[%clk 0:02:29.2]} 9... Rb8 {[%clk
0:02:33.9]} 10. a3 {[%clk 0:02:13.4]} 10... a5 {[%clk 0:02:34.1]} 11. e5 {[%clk
0:01:27.9]} 11... Nd7 {[%clk 0:02:32]} 12. d4 {[%clk 0:01:27.9]} 12... b4 {[%clk
0:02:23.9]} 13. axb4 {[%clk 0:01:27.7]} 13... axb4 {[%clk 0:02:23.8]} 14. h4
{[%clk 0:01:19.5]} 14... Qb6 {[%clk 0:02:20.5]} 15. dxc5 {[%clk 0:00:37.4]}
15... Nxc5 {[%clk 0:02:15.2]} 16. c4 {[%clk 0:00:34.5]} 16... Rd8 {[%clk
0:02:07.2]} 17. cxd5 {[%clk 0:00:23.2]} 17... exd5 {[%clk 0:02:07.4]} 18. Nb3
{[%clk 0:00:13.6]} 18... Bg4 {[%clk 0:02:08]} 19. Be2 {[%clk 0:00:08.8]} 19...
Nxb3 {[%clk 0:02:08.1]} 20. Qxb3 {[%clk 0:00:08.7]} 20... Bc5 {[%clk 0:02:09]}
21. Rf1 {[%clk 0:00:07.7]} 21... Nxe5 {[%clk 0:02:02.3]} 22. Bf4 {[%clk
0:00:06.1]} 22... Nxf3+ {[%clk 0:01:51.8]} 23. Bxf3 {[%clk 0:00:06.3]} 23...
Bxf3 {[%clk 0:01:48.7]} 24. Bxb8 {[%clk 0:00:05.9]} 24... Bxg2 {[%clk
0:01:37.2]} 25. Kxg2 {[%clk 0:00:02.7]} 25... Qxb8 {[%clk 0:01:37.1]} 26. Qd3
{[%clk 0:00:02.7]} 26... g6 {[%clk 0:01:35]} 27. Rad1 {[%clk 0:00:02.8]} 27...
Qe5 {[%clk 0:01:35.3]} 28. Qg3 {[%clk 0:00:02.9]} 28... Qxb2 {[%clk 0:01:35.1]}
29. Rfe1 {[%clk 0:00:02.8]} 29... Qf6 {[%clk 0:01:34.2]} 30. h5 {[%clk
0:00:03.2]} 30... b3 {[%clk 0:01:33.8]} 31. hxg6 {[%clk 0:00:03.6]} 31... hxg6
{[%clk 0:01:33.7]} 32. Rb1 {[%clk 0:00:03.3]} 32... b2 {[%clk 0:01:33.9]} 33.
Re2 {[%clk 0:00:03.4]} 33... Bd4 {[%clk 0:01:33.7]} 34. Kf1 {[%clk 0:00:02.4]}
34... Qf5 {[%clk 0:01:33.8]} 35. Rbxb2 {[%clk 0:00:02.5]} 35... Bxb2 {[%clk
0:01:34.2]} 36. Rxb2 {[%clk 0:00:03.4]} 36... d4 {[%clk 0:01:33.9]} 37. Rd2
{[%clk 0:00:03.7]} 37... d3 {[%clk 0:01:34.1]} 38. Kg2 {[%clk 0:00:03.3]} 38...
Rd4 {[%clk 0:01:33.7]} 39. f3 {[%clk 0:00:03.1]} 39... Kg7 {[%clk 0:01:28.1]}
40. Kf2 {[%clk 0:00:01.2]} 40... Qc5 {[%clk 0:01:26]} 41. Kg2 {[%clk 0:00:01.5]}
41... Qd5 {[%clk 0:01:22.2]} 42. Qf2 {[%clk 0:00:02]} 42... Rc4 {[%clk
0:01:20.8]} 43. Qe3 {[%clk 0:00:02.1]} 43... Rc3 {[%clk 0:01:18.7]} 44. Kf2
{[%clk 0:00:01.5]} 44... g5 {[%clk 0:01:15.9]} 45. f4 {[%clk 0:00:01.7]} 45...
gxf4 {[%clk 0:01:11.1]} 46. Qxf4 {[%clk 0:00:02.1]} 46... Rc2 {[%clk 0:01:11.4]}
47. Ke3 {[%clk 0:00:01.7]} 47... Qc5+ {[%clk 0:01:08.6]} 48. Kxd3 {[%clk
0:00:01.9]} 48... Qc3+ {[%clk 0:01:08.5]} 49. Ke2 {[%clk 0:00:02.6]} 49... Rxd2+
{[%clk 0:01:08.8]} 50. Qxd2 {[%clk 0:00:03.5]} 50... Qxd2+ {[%clk 0:01:08.7]}
51. Kxd2 {[%clk 0:00:04.4]} 51... Kf6 {[%clk 0:01:09.2]} 52. Ke3 {[%clk
0:00:05]} 52... Ke5 {[%clk 0:01:09.5]} 53. Kf3 {[%clk 0:00:05]} 53... Kf5 {[%clk
0:01:10.1]} 54. Kf2 {[%clk 0:00:04.8]} 54... Kf4 {[%clk 0:01:10.4]} 0-1

[Event "*** SCC Grand Prix: Titled Tuesday Blitz"]
[Site "Chess.com"]
[Date "2020.06.02"]
[Round "2"]
[White "Denis_Palkovich"]
[Black "LionTheLeon_06"]
[Result "0-1"]
[WhiteElo "2318"]
[BlackElo "2687"]
[TimeControl "180+1"]
[EndTime "10:17:27 PDT"]
[Termination "LionTheLeon_06 won on time"]

1. d4 {[%clk 0:03:00.9]} 1... Nf6 {[%clk 0:02:59.5]} 2. Bf4 {[%clk 0:03:01]}
2... b6 {[%clk 0:02:59.1]} 3. e3 {[%clk 0:03:01.2]} 3... Bb7 {[%clk 0:02:59.7]}
4. Nf3 {[%clk 0:03:01]} 4... e6 {[%clk 0:03:00.3]} 5. Nbd2 {[%clk 0:02:51.4]}
5... Be7 {[%clk 0:03:00.2]} 6. Bd3 {[%clk 0:02:48.9]} 6... O-O {[%clk
0:02:59.8]} 7. h4 {[%clk 0:02:41.6]} 7... c5 {[%clk 0:02:59.2]} 8. c3 {[%clk
0:02:41.2]} 8... d6 {[%clk 0:02:58.2]} 9. h5 {[%clk 0:02:35.6]} 9... cxd4 {[%clk
0:02:55.7]} 10. exd4 {[%clk 0:02:34.9]} 10... Nbd7 {[%clk 0:02:50.7]} 11. Ng5
{[%clk 0:02:24]} 11... e5 {[%clk 0:02:37.6]} 12. Be3 {[%clk 0:02:16.8]} 12... h6
{[%clk 0:02:31]} 13. Nge4 {[%clk 0:02:00.8]} 13... Nd5 {[%clk 0:02:08.1]} 14.
Ng3 {[%clk 0:01:13.2]} 14... Nxe3 {[%clk 0:01:44.8]} 15. fxe3 {[%clk 0:01:12.3]}
15... Nf6 {[%clk 0:01:21.3]} 16. Nf5 {[%clk 0:00:52.8]} 16... Re8 {[%clk
0:01:05.1]} 17. Bb5 {[%clk 0:00:36.8]} 17... Rf8 {[%clk 0:00:35.1]} 18. Qe2
{[%clk 0:00:37.3]} 18... a6 {[%clk 0:00:28.5]} 19. Bd3 {[%clk 0:00:35.8]} 19...
b5 {[%clk 0:00:28.8]} 20. g4 {[%clk 0:00:30.2]} 20... Bxh1 {[%clk 0:00:26.1]}
21. O-O-O {[%clk 0:00:26.4]} 21... Bc6 {[%clk 0:00:18.6]} 22. Rg1 {[%clk
0:00:25.5]} 22... Nh7 {[%clk 0:00:18.3]} 23. d5 {[%clk 0:00:12.2]} 23... Bd7
{[%clk 0:00:17.4]} 24. Nxe7+ {[%clk 0:00:08.2]} 24... Qxe7 {[%clk 0:00:17.3]}
25. Ne4 {[%clk 0:00:08.8]} 25... Ng5 {[%clk 0:00:17.6]} 26. Qg2 {[%clk 0:00:08]}
26... f5 {[%clk 0:00:14.5]} 27. gxf5 {[%clk 0:00:05.4]} 27... Bxf5 {[%clk
0:00:14.7]} 28. Nxg5 {[%clk 0:00:01.5]} 28... Qxg5 {[%clk 0:00:15.6]} 29. Qf3
{[%clk 0:00:01.2]} 29... Qxg1+ {[%clk 0:00:15.3]} 30. Kc2 {[%clk 0:00:01.8]}
30... Bxd3+ {[%clk 0:00:15.2]} 0-1